Cogmind - Beta 14 @@@ ROGUE MODE // 2024.09.18 @ 13:13:36 Player: x1123581321345589144233 Result: Destroyed by Y-45 Defender with Heavy Assault Rifle Performance ------------- Evolutions (2) 1000 Regions Visited (3) 600 Robots Destroyed (43) 215 Value Destroyed (1427) 1427 Prototype IDs (1) 20 Alien Tech Used (0) 0 Bonus (49) 49 TOTAL SCORE: 3311 Bonus ------- High Alert Combat Kills 49 Cogmind --------- Core Integrity 0/550 Matter 10/300 Energy 21/100 System Corruption 1% Temperature Warning (312) Movement Walking (260) Ox2 Location -8/Materials Parts ------- > --- POWER (1) -------- (None) > --- PROPULSION (3) --- Aluminum Leg Improved Flight Unit > --- UTILITY (4) ------ Large Storage Unit Advanced Visual Processing Unit Transport Network Coupler > --- WEAPON (3) ------- Pulse Rifle Beam Cannon > --- INVENTORY (15) --- Light Ion Engine Cooling System Medium Battery (150) Advanced Visual Processing Unit Seismic Detector Improved Propulsion Shielding Shield Generator Particle Gun Autogun Autogun Advanced EMP Blaster Mini Grenade Launcher Mini Grenade Launcher Datajack Scythe Peak State ------------ > --- POWER ------------ (None) > --- PROPULSION ------- Improved Flight Unit Improved Flight Unit Improved Flight Unit > --- UTILITY ---------- Improved Heat Sink Large Storage Unit Advanced Visual Processing Unit Advanced Targeting Computer > --- WEAPON ----------- Autogun Scythe Scythe > --- INVENTORY -------- Light Ion Engine Cooling System Large Battery Advanced Visual Processing Unit Seismic Detector Transport Network Coupler Beam Cannon Mini Grenade Launcher Mini Grenade Launcher Mini Grenade Launcher Datajack Scythe Scythe [Rating: 29] Favorites ----------- Power Ion Engine Engine Ion Engine Power Core Light Nuclear Core Propulsion Aluminum Leg Treads Light Treads Leg Aluminum Leg Flight Unit Improved Flight Unit Utility Large Storage Unit Device Improved Heat Sink Storage Large Storage Unit Processor Advanced Visual Processing Unit Protection Light Armor Plating Weapon Mini Grenade Launcher Energy Gun Pulse Rifle Energy Cannon Beam Cannon Ballistic Gun Light Assault Rifle Launcher Mini Grenade Launcher Special Weapon Plasma Cutter Slashing Weapon Scythe Build | -11 -10 -9 -8 ------- Run | Yrd Mat Mat Mat Slots Evolved 4 | . . 2 2 Power . | . . . . Propulsion 1 | . . 1 . Utility 2 | . . . 2 Weapon 1 | . . 1 . Parts Attached 79 | 5 12 49 13 Power 9 | 1 3 3 2 Engine 7 | 1 3 2 1 Core 2 | . . 1 1 Reactor . | . . . . Propulsion 26 | 2 2 21 1 Treads 4 | . . 4 . Leg 18 | 2 2 13 1 Wheel . | . . . . Hover . | . . . . Flight 4 | . . 4 . Utility 18 | . 5 10 3 Device 7 | . . 7 . Storage 6 | . 3 3 . Processor 3 | . . . 3 Hackware . | . . . . Protection 2 | . 2 . . Artifact . | . . . . Weapon 26 | 2 2 15 7 Energy Gun 9 | 1 . 6 2 Energy Cannon 3 | . . 2 1 Ballistic Gun 5 | 1 2 1 1 Ballistic Cannon . | . . . . Launcher 6 | . . 5 1 Special Weapon 1 | . . 1 . Impact Weapon . | . . . . Slashing Weapon 2 | . . . 2 Piercing Weapon . | . . . . Special Melee Weapon . | . . . . Unidentified Prototypes 1 | . . 1 . Corrupted Parts 1 | . . 1 . System Corruption 8 | . . 8 . Parts Lost 17 | . . 7 10 Power 3 | . . 1 2 Propulsion 3 | . . 1 2 Utility 2 | . . . 2 Weapon 9 | . . 5 4 Highest Loss Streak 4 | . . 2 4 To Critical Strikes . | . . . . Average Slot Usage (%) 88 | . 94 95 74 Engine 6 | . 13 7 . Core 3 | . . 2 5 Treads 2 | . . 5 . Leg 18 | . 27 23 5 Flight 5 | . . 3 13 Device 5 | . . 8 2 Storage 11 | . 14 12 9 Processor 4 | . . . 15 Protection 1 | . 9 . . Energy Gun 8 | . 9 7 9 Energy Cannon 3 | . . 3 5 Ballistic Gun 8 | . 17 9 2 Launcher 5 | . . 7 4 Special Weapon 1 | . . 3 . Peak Build Rating 29 | 5 7 23 29 Average Rating 13 | 4 6 13 20 On Entrance 8 | . 5 7 23 Naked Turns . | . . . . Heaviest Build 35 | 7 17 35 34 Greatest Support 66 | 20 20 66 15 Greatest Overweight (x) 9 | . . 9 6 Average Overweight (x) . | . . . 2 Largest Inventory Capacity 15 | 5 5 15 15 Average Capacity 10 | 5 5 10 15 Most Carried 15 | 5 5 15 15 Average Carried 8 | 2 3 6 14 Final Capacity 15 | 5 5 15 15 Final Carried 15 | 5 5 15 15 Class Distribution -------------------- 36% | Mutant 32% | Scavenger-Gunner 14% | Skirmisher 6% | Scavenger-Mutant 5% | Bomber Dominant Class ---------------- Mutant | -10/Materials Scavenger-Gunner | -9/Materials Skirmisher | -8/Materials Resources | -11 -10 -9 -8 ----------- Run | Yrd Mat Mat Mat Matter Collected 1414 | 256 274 760 124 Remotely . | . . . . Salvage Created 1513 | 39 172 1108 194 Parts 83 | 4 12 57 10 Haulers Intercepted 1 | . . 1 . Recyclers Shooed . | . . . . Parts Field Recycled . | . . . . Retrieved Matter . | . . . . Parts Self-Destructed . | . . . . Prevented . | . . . . Kills | -11 -10 -9 -8 ------- Run | Yrd Mat Mat Mat Combat Hostiles Destroyed 38 | 1 6 25 6 Melee 1 | . . . 1 Guns 23 | 1 6 14 2 Cannons 3 | . . 3 . AOE 11 | . . 8 3 Classes Destroyed 9 | 1 1 4 3 Worker 2 | . . 2 . Hauler 1 | . . 1 . Recycler 1 | . . 1 . Operator 1 | . . . 1 Swarmer 7 | . 3 4 . Grunt 24 | 1 3 17 3 Duelist 1 | . . . 1 Sentry 5 | . . 4 1 Hunter 1 | . . . 1 Best Kill Streak 5 | 1 2 5 3 Combat Bots Only 4 | 1 2 4 3 Max Kills in Single Turn 4 | 1 1 4 1 Gunslinging . | . . . . Exploded 3 | . . 3 1 Melee 1 | . . . 1 Uniques/NPCs Destroyed . | . . . . Combat | -11 -10 -9 -8 -------- Run | Yrd Mat Mat Mat Hostile Shots Fired 241 | 3 19 137 82 Missed 65 | . 5 36 24 Damage Taken 2645 | 30 126 1273 1216 Core 785 | 10 20 200 555 Absorbed by Shields . | . . . . Core Remaining (%) 78 | 96 88 50 . Volleys Fired 121 | 2 17 74 28 Largest 3 | 2 2 3 3 Hottest 186 | 60 60 135 186 Shots Fired 256 | 4 34 168 50 Gun 190 | 4 34 123 29 Cannon 28 | . . 22 6 Launcher 28 | . . 13 15 Special 10 | . . 10 . Kinetic 117 | 2 23 76 16 Thermal 73 | . . 54 19 Explosive 28 | . . 13 15 Electromagnetic 38 | 2 11 25 . Robot Hit Streak 15 | 3 4 15 11 Robot Miss Streak 4 | . 3 4 3 Penetration Max . | . . . . Secondary Targets 1 | . 1 . . Max Gunslinging Chain 1 | . 1 . . Shots Hit Robots 136 | 3 16 91 26 Core Hits 79 | 2 7 51 19 Critical Kills . | . . . . Critical Parts Destroyed . | . . . . Critical Strikes 2 | . . 2 . Burn 1 | . . 1 . Corrupt 1 | . . 1 . Melee Attacks . | . . . . Impact . | . . . . Slashing . | . . . . Piercing . | . . . . Sneak Attacks . | . . . . Combat Hostiles . | . . . . Follow-up Attacks . | . . . . Damage Inflicted 3019 | 38 169 2029 783 Guns 1565 | 38 169 1050 308 Cannons 358 | . . 305 53 Explosions 1039 | . . 631 408 Melee . | . . . . Ramming 14 | . . . 14 Kinetic 935 | 10 115 669 141 Thermal 712 | . . 405 307 Explosive 952 | . . 631 321 Electromagnetic 406 | 28 54 324 . Impact . | . . . . Slashing . | . . . . Piercing . | . . . . Highest Corruption 14 | . . 14 1 Average Corruption 8 | . . 11 1 Corruption Purged . | . . . . Corruption Blocked . | . . . . Effects 54 | . . 51 3 Message Errors 8 | . . 7 1 Matter Fused 16 | . . 15 1 Heat Flow Errors 5 | . . 5 . Energy Discharges 5 | . . 5 . Parts Rejected 1 | . . 1 . Data Loss (minor) 10 | . . 10 . Data Loss (major) 4 | . . 4 . Misfires 2 | . . 2 . Alerts 1 | . . 1 . Weapon Failures 2 | . . 1 1 Overload Shots . | . . . . Overflow Damage 19 | . . 12 7 Projectiles . | . . . . Explosions 19 | . . 12 7 Melee . | . . . . Knockbacks . | . . . . Impact . | . . . . Kinetic . | . . . . Secondary . | . . . . Self-Inflicted Damage 326 | . . 40 286 Shots 7 | . . 1 6 Rammed 4 | . . . 4 Targets Rammed 4 | . . . 4 Kicked . | . . . . Crushed . | . . . . Highest Temperature 376 | 12 30 241 376 Average Temperature 67 | 9 9 65 140 Received Heat Transfer 1002 | 18 36 561 387 Effects 2 | . . 1 1 Energy Bleed 1 | . . 1 . Damage (minor) 1 | . . . 1 Siege Activations . | . . . . Robots Corrupted . | . . . . Combat Hostiles . | . . . . Parts Fried 1 | . . 1 . Impact Corruptions . | . . . . Robots Melted . | . . . . Combat Hostiles . | . . . . Parts Melted 5 | . . 4 1 Heat Transferred 1678 | . . 1147 531 Parts Sabotaged . | . . . . Parts Stolen . | . . . . Parts Stripped . | . . . . Power Chain Reactions . | . . . . Alert | -11 -10 -9 -8 ------- Run | Yrd Mat Mat Mat Peak Influence 474 | 20 264 467 474 Initial 196 | . 13 48 196 Average 208 | 9 115 212 291 Maximum Alert Level 2 | . 1 2 2 Low Security (%) 45 | 100 84 41 19 Level 1 47 | . 15 53 62 Level 2 7 | . . 5 17 Level 3 . | . . . . Level 4 . | . . . . Level 5 . | . . . . High Security . | . . . . Max Security . | . . . . Squads Dispatched 4 | . 2 2 . Investigation 1 | . 1 . . Extermination . | . . . . Reinforcement 3 | . 1 2 . Assault . | . . . . Garrison . | . . . . Intercept . | . . . . Searches Triggered . | . . . . Construction Impeded . | . . . . Haulers Reinforced . | . . . . Active Scanning Responses . | . . . . Cargo Convoy Interrupts . | . . . . Stealth | -11 -10 -9 -8 --------- Run | Yrd Mat Mat Mat Distress Signals 2 | . . 2 . Communications Jammed . | . . . . Distress Signals . | . . . . Times Spotted 59 | 1 13 35 10 Peak Tracking Total 6 | 1 4 6 4 Tactical Retreats 5 | . 1 3 1 Traps | -11 -10 -9 -8 ------- Run | Yrd Mat Mat Mat Traps Triggered 12 | . 3 9 . Indirectly . | . . . . Trap Hack Attempts . | . . . . Triggered . | . . . . Disarmed . | . . . . Reprogrammed . | . . . . Reused . | . . . . Traps Extracted . | . . . . Installed . | . . . . Triggered . | . . . . Machines | -11 -10 -9 -8 ---------- Run | Yrd Mat Mat Mat Machines Disabled 11 | . 1 3 7 Max in Single Turn 4 | . 1 2 4 Machines Repaired . | . . . . Machines Dismantled . | . . . . Machines Sabotaged . | . . . . Overloaded Fab Kills . | . . . . Hacking | -11 -10 -9 -8 --------- Run | Yrd Mat Mat Mat Machines Accessed 1 | . . 1 . Terminals 1 | . . 1 . Fabricators . | . . . . Repair Stations . | . . . . Recycling Units . | . . . . Scanalyzers . | . . . . Garrison Access . | . . . . Total Hacks 3 | . . 3 . Successful 1 | . . 1 . Failed 2 | . . 2 . Catastrophic 1 | . . 1 . Database Lockouts . | . . . . Manual 3 | . . 3 . Terminals 3 | . . 3 . Fabricators . | . . . . Repair Stations . | . . . . Recycling Units . | . . . . Scanalyzers . | . . . . Garrison Access . | . . . . Terminal Hacks 1 | . . 1 . Record 1 | . . 1 . Fabricator Hacks . | . . . . Repair Station Hacks . | . . . . Recycling Unit Hacks . | . . . . Scanalyzer . | . . . . Garrison Access Hacks . | . . . . Unauthorized Hacks . | . . . . Terminals . | . . . . Fabricators . | . . . . Repair Stations . | . . . . Recycling Units . | . . . . Scanalyzers . | . . . . Garrison Access . | . . . . Data Cores Recovered . | . . . . Used . | . . . . Hacking Detections 1 | . . 1 . Full Trace Events . | . . . . Feedback Events . | . . . . Feedback Blocked . | . . . . Robot Schematics Acquired . | . . . . Robots Built . | . . . . Authchips . | . . . . Time . | . . . . Total Robot Build Rating . | . . . . Part Schematics Acquired . | . . . . Parts Built . | . . . . Authchips . | . . . . Time . | . . . . Total Part Build Rating . | . . . . Parts Repaired . | . . . . Time . | . . . . Parts Recycled . | . . . . Recycled Matter . | . . . . Retrieved Matter . | . . . . Retrieved Components . | . . . . Parts Scanalyzed . | . . . . Part Schematics Acquired . | . . . . Parts Damaged . | . . . . Bothacking | -11 -10 -9 -8 ------------ Run | Yrd Mat Mat Mat Used RIF Installer . | . . . . Robots Hacked . | . . . . Non-combat . | . . . . Combat . | . . . . Robot Hacks Applied . | . . . . Relay Couplers Released . | . . . . Fabnet Peak Effective % . | . . . . Robots Rewired . | . . . . Allies Hacked . | . . . . Hacks Repelled . | . . . . Allies | -11 -10 -9 -8 -------- Run | Yrd Mat Mat Mat Total Allies . | . . . . Largest Group . | . . . . Highest-Rated Group . | . . . . Highest-Rated Ally . | . . . . Total Orders . | . . . . Ally Attacks . | . . . . Total Damage . | . . . . Kills . | . . . . Allies Corrupted . | . . . . Allies Melted . | . . . . Intel | -11 -10 -9 -8 ------- Run | Yrd Mat Mat Mat Robot Analysis Total . | . . . . Derelict Logs Recovered . | . . . . Drone Launches . | . . . . Drone Recoveries . | . . . . Exploration | -11 -10 -9 -8 ------------- Run | Yrd Mat Mat Mat Turns Passed 3180 | 191 481 1578 930 Spaces Moved 1611 | 154 291 797 369 Core 31 | 29 . 2 . Treads 98 | . . 98 . Legs 1209 | 125 291 637 156 Wheels . | . . . . Hover . | . . . . Flight 273 | . . 60 213 Fastest Speed 50 | 50 120 104 104 Average Speed 156 | 106 120 151 218 Slowest Speed 500 | 120 120 500 460 Overloaded Moves . | . . . . Propulsion Burnouts . | . . . . Robots Hopped . | . . . . Cave-ins Triggered . | . . . . Exploration Rate (%) 25 | 8 29 40 24 Regions Visited 3 Branch Regions . Pre-discovered Areas . | . . . . Known Exits Taken . | . . . . Unknown Exits Taken 3 | 1 1 1 . Scrap Searched . | . . . . Spaces Dug 16 | . . 16 . Terrain Destroyed 240 | . . 94 146 Melee . | . . . . Projectile . | . . . . AOE 240 | . . 94 146 Terrain Rammed . | . . . . Walls Destroyed . | . . . . Machines Disabled . | . . . . Actions | -11 -10 -9 -8 --------- Run | Yrd Mat Mat Mat Total 2041 | 176 392 1017 456 Wait 105 | 6 52 33 14 Move 1608 | 153 290 796 369 Hop . | . . . . Pick Up 59 | 10 7 27 15 Fast Attach 38 | . 9 26 3 Attach 30 | 5 1 15 9 Detach 17 | . 3 11 3 Swap 11 | . 2 8 1 Drop 48 | . 11 27 10 Fire 121 | 2 17 74 28 Melee . | . . . . Ram 4 | . . . 4 Kick . | . . . . Crush . | . . . . Escape Stasis . | . . . . Rewire . | . . . . Trap . | . . . . Miscellaneous . | . . . . Route ------- -11/Scrapyard -10/Materials -9/Materials (discovered 2 exits: [*Mat] / [*Min]) -8/Materials (discovered 1 exit: [*Sto]) History --------- Turn | Location | Event 2 | -11/Scrapyard | Met Revision 17 87 | -11/Scrapyard | Discovered new exit (range 8) 192 | -11/Scrapyard | Entered Materials 238 | -10/Materials | Discovered new exit (range 15) 318 | -10/Materials | Build established: Mutant 673 | -10/Materials | Entered another Materials area 673 | -9/Materials | Evolved 2 slots: Propulsion x1, Weapon x1 718 | -9/Materials | Discovered new exit (range 15) 1369 | -9/Materials | System corruption reached 10% 1468 | -9/Materials | Build established: Scavenger-Gunner 2076 | -9/Materials | Discovered new exit (range 13) 2251 | -9/Materials | Entered another Materials area 2251 | -8/Materials | Evolved 2 slots: Utility x2 2520 | -8/Materials | Lost 4 parts (2n2u) 2562 | -8/Materials | Core integrity fell below 50% 2652 | -8/Materials | Build established: Mutant 3021 | -8/Materials | Build established: Skirmisher 3103 | -8/Materials | Discovered new exit (range 20) 3166 | -8/Materials | Core integrity fell below 20% 3181 | -8/Materials | Destroyed by Y-45 Defender with Heavy Assault Rifle Last Messages --------------- Penetrated by Slug. Terminal disabled. Penetrated by Slug. System corrupted: Beam Cannon failed to cycle. Penetrated by Slug. Lgt. Nuclear Core destroyed. Carbon-fiber Leg melted. H-55 Commando destroyed. K-01 Serf collects debris. Atomic Centrifuge disabled. Overheating: Beam Cannon damaged (-31). To regain energy, simply wait via the mouse wheel, '.', or KP5. Also make sure your per-turn energy generation is a net positive, and consider deactivating power-draining parts if not. K-01 Serf collects debris. Pulse Rifle destroyed. K-01 Serf collects debris. [Achievement: First Step to Greatness] Map ----- +----------------------------------------------------+ | ???????????????????????????????????????????? | | ???????????????????????????????????????????? | | ???????????????????????????????????????????? | | ???????????????????????????????????????????? | | ??????????????######???????????????????????? | | ??????????????? ???????????????????????? | | ??????????????? ! ???????????????????????? | | ??????????????? < ???????????????????????? | | ????????????a?a ???????????????????????? | | ??????????????? ???????????????????????? | | ???????????????# #???????????????????????? | | ???????????????# #???????????????????????? | | ???????????????# #???????????????????????? | | ???????????????# #???????????????????????? | | ???????????????# #???????????????????????? | | ???????????????#^ #???????????????????????? | | ???????????????#%^ #?##????????????????????? | | ???????????????#$ #? ?????????????????????? | | ???????????????#=* # ?????????????????????? | | ???????????????# # ??????????????????????? | | ???????????????# /???????????????????????? | | ???????????????# #???????????????????????? | | ???????????????# #???????????????????????? | | ??????????????## ##??????????????????????? | | ????????a?????# ##########+####????????? | | ??????????????# *g @ #????????? | | ??????????????# kY #????????? | | ??????????????# "" """ #????????? | | ??????????????# """ """ #????????? | | ???????????###### """ """ #????????? | | ???????????# # #????????? | | ???????????# + #????????? | | ???????????# # """ "" """ #????????? | | ???????????# # """ """ """ ########## | | ???????????# # """ """ """ # # | | ???????????# # a # """ # | | ???????????# # # """ # | | ???????????###### # """ # | | ??????????#####?# + # | | ??????????# ! # # """ # | | ??????????#" # # """ # | | ??????????#T + ###### # / """ # | | ??????????#" # #?#####+###### ## # | | ??????????# !# #?# ! ## ########### | | ????????#+#######+### ## # ##?????? | | ???????? ## # ## # ##????? | | ???????? ## """ # ## # # #????? | | ???? ## """ # ##+#### ##???? | | ???? """ ## """ # # "#???? | | ???? """"" ## # + ##???? | +----------------------------------------------------+ Best States ------------- Heat Dissipation 50 Energy Generation 14 Energy Capacity 750 Matter Stores 400 Matter Capacity 400 Sight Range 20 Terrain Scan Range 14 Terrain Scan Density 10 Additional Mass Support 6 Armor Coverage 150 Evasion (%) 55 Targeting Accuracy 8 Recoil Reduction 3 Item Schematics ----------------- None Robot Schematics ------------------ None Fabricated ------------ Nothing Alien Tech Used ----------------- None Achievements -------------- Crack Shot First Step to Greatness Fist Fight Let's See Who's Tougher Loot Pinata Maybe Next Time I'll Detach My Launcher Oops Remodeling Risk Taker System Compromised Uninvited Guest Challenges ------------ None Game ------ Seed ReinforcedCombatDrive Manual? 0 Play Time 00:59:34 Cumulative 0.9 hours Start 2024.09.18 @ 11:57:53 End 2024.09.18 @ 13:13:36 Sessions 1 Manual Loads 0 Difficulty Rogue Special Mode None Game No. 2 Rogue 2 Adventurer 0 Explorer 0 Win Type - Total 0 Types 0/0/0/0/0/0/0/0/0 Lore% 0 Gallery% 3 Achievement% 4 Wizard Run 0 Options --------- Layout 1 ASCII 0 Keyboard 1 Movement Numpad Keybinds 0 Fullscreen 1 Font 24/Terminus Map View 50x35 Zoom Use 0% Tactical HUD 0 Map Filters NONE Filters NONE Steam 1 RUN: a6d9bc9f-3c09-4138-a6aa-dc9d275275c9